bitfinex/quotes_BTCUSD_20260215
["timestamp","ask_amount","ask_price","bid_price","bid_amount"]
[1771129831701,0.001,70258.0,70257.0,0.006]
[1771129832330,0.07116232,70262.0,70255.0,0.07116895]
[1771129832685,0.07116125,70263.0,70252.0,0.02483059]
[1771129832686,0.07116125,70263.0,70256.0,0.07416823]
[1771129832805,0.0004,70264.0,70256.0,0.07116823]
[1771129833022,0.0004,70264.0,70257.0,0.0761664]
[1771129833225,0.001,70258.0,70257.0,0.0761664]
[1771129833453,9.73e-05,70258.0,70257.0,0.0711664]
[1771129833654,9.73e-05,70258.0,70256.0,0.0711682]
[1771129833960,9.73e-05,70258.0,70257.0,0.07116728]
[1771129834473,0.0004973,70258.0,70256.0,0.0711682]
[1771129834879,0.0004973,70258.0,70254.0,0.07116958]
[1771129835045,0.0004973,70258.0,70253.0,0.36579059]
[1771129835241,0.0004973,70258.0,70256.0,0.0711682]
[1771129835433,0.0004973,70258.0,70257.0,0.07116728]
[1771129835842,0.0014973,70258.0,70257.0,0.07716728]
[1771129836210,0.0014973,70258.0,70257.0,0.006]
[1771129837583,0.0004,70264.0,70261.0,0.07116267]
[1771129837782,0.0004,70264.0,70257.0,0.006]
[1771129837982,0.0711632,70262.0,70257.0,0.006]
[1771129838235,0.02463726,70261.0,70257.0,0.006]
[1771129838789,0.02463726,70261.0,70254.0,0.07116972]
[1771129838986,0.09580112,70261.0,70254.0,0.07116972]
[1771129839729,0.09680112,70261.0,70254.0,0.07116972]
[1771129839888,0.09580112,70261.0,70254.0,0.07116972]
[1771129840090,0.07116386,70261.0,70254.0,0.07116972]
[1771129840290,0.07116386,70261.0,70254.0,0.07216972]
[1771129840717,0.02463726,70262.0,70255.0,0.07116914]
[1771129840914,0.0711633,70261.0,70254.0,0.07216999]
[1771129841461,0.09579976,70262.0,70255.0,0.07116895]
[1771129841876,0.02463726,70262.0,70256.0,0.07116773]
[1771129842070,0.02563726,70262.0,70256.0,0.07116773]
[1771129842263,0.0004,70261.0,70256.0,0.07116773]
[1771129842466,0.001,70262.0,70261.0,0.07116323]
[1771129842667,0.0006128,70265.0,70263.0,0.0711612]
[1771129842898,0.0004,70269.0,70268.0,0.07115614]
[1771129843053,0.0004,70269.0,70268.0,0.07100852]
[1771129844377,0.0004,70269.0,70267.0,0.07115696]
[1771129844724,0.0004,70269.0,70264.0,0.07115947]
[1771129844969,0.0004,70269.0,70263.0,0.07115933]
[1771129845172,0.0014,70269.0,70263.0,0.07115933]
[1771129845373,0.0004,70269.0,70264.0,0.07116015]
[1771129845579,0.0004,70269.0,70266.0,0.07115815]
[1771129845740,0.0006128,70276.0,70264.0,0.02773275]
[1771129845949,0.52683599,70275.0,70265.0,0.07115918]
[1771129846148,0.07115293,70272.0,70263.0,0.07116025]
[1771129846371,0.001,70269.0,70263.0,0.003]
[1771129846554,0.02349103,70271.0,70264.0,0.07115942]
[1771129847097,0.02349103,70271.0,70264.0,0.28764075]
[1771129847291,0.02349103,70271.0,70266.0,0.07115731]
[1771129847495,0.02349103,70271.0,70265.0,0.07115905]
[1771129847698,0.02349103,70271.0,70266.0,0.0711579]
[1771129847902,0.02349103,70271.0,70265.0,0.07115905]
[1771129848327,0.02349103,70271.0,70266.0,0.07115816]
[1771129848459,0.001,70269.0,70266.0,0.07115816]
[1771129848654,0.02349103,70271.0,70266.0,0.07115816]
[1771129849204,0.02449103,70271.0,70266.0,0.07115816]
[1771129849451,0.0006128,70276.0,70269.0,0.07115488]
[1771129849623,0.0717612,70276.0,70269.0,0.07115488]
[1771129849817,0.0004,70271.0,70269.0,0.07115488]
[1771129850781,0.0004,70271.0,70268.0,0.07115603]
[1771129850987,0.0004,70271.0,70269.0,0.07115507]
[1771129851203,0.0006128,70276.0,70269.0,0.07115507]
[1771129851405,0.0006128,70276.0,70270.0,0.0711531]
[1771129851804,0.001,70271.0,70270.0,0.0711531]
[1771129852010,0.07114908,70275.0,70268.0,0.07115612]
[1771129852453,0.07114908,70275.0,70269.0,0.001]
[1771129852629,0.07176118,70276.0,70268.0,0.07115612]
[1771129852812,0.0006128,70276.0,70268.0,0.07115612]
[1771129853012,0.001,70271.0,70270.0,0.004]
[1771129853890,0.0006128,70276.0,70270.0,0.004]
[1771129854186,0.0006128,70276.0,70274.0,0.07114959]
[1771129854739,0.0006128,70276.0,70275.0,0.07114905]
[1771129855095,0.00012,70280.0,70279.0,0.071145]
[1771129855244,0.00025015,70280.0,70279.0,0.071145]
[1771129855445,0.00025015,70280.0,70272.0,0.02473275]
[1771129855653,0.00025015,70280.0,70276.0,0.0711471]
[1771129856250,0.00025015,70280.0,70279.0,0.003]
[1771129857378,0.00025015,70280.0,70277.0,0.07114701]
[1771129857801,0.00425015,70280.0,70277.0,0.07114701]
[1771129858002,0.00025015,70280.0,70277.0,0.07114701]
[1771129858418,0.00525015,70280.0,70277.0,0.07114701]
[1771129858625,0.00025015,70280.0,70277.0,0.07114701]
[1771129858824,0.00025015,70280.0,70273.0,0.07115108]
[1771129859024,0.01390151,70284.0,70281.0,0.07114286]
[1771129859304,0.01390151,70284.0,70279.0,0.071145]
[1771129859518,0.01390151,70284.0,70279.0,0.07127493]
[1771129859933,0.01390151,70284.0,70280.0,0.07114375]
[1771129860260,0.01390151,70284.0,70282.0,0.07114112]
[1771129860668,0.00012,70290.0,70280.0,0.02473275]
[1771129860968,0.00012,70290.0,70285.0,0.07113806]
[1771129861194,0.00012,70290.0,70286.0,0.07113773]
[1771129861811,0.0004,70293.0,70289.0,0.07113488]
[1771129862016,0.003,70290.0,70289.0,0.07113488]
[1771129862215,0.0004,70293.0,70289.0,0.07113488]
[1771129862621,0.0004,70293.0,70287.0,0.07113609]
[1771129862792,0.0004913,70293.0,70287.0,0.07113609]
[1771129862992,0.003,70290.0,70287.0,0.07113609]
[1771129863799,9.13e-05,70292.0,70287.0,0.07113609]
[1771129864092,9.13e-05,70292.0,70280.0,0.00012]
[1771129864339,0.07113592,70288.0,70281.0,0.07114225]
[1771129864582,0.07113787,70287.0,70280.0,0.00012]
[1771129864776,9.13e-05,70292.0,70279.0,0.07114497]
[1771129864777,0.52683599,70286.0,70279.0,0.07114497]
[1771129865147,0.07118769,70287.0,70280.0,0.07114389]
[1771129865724,0.07113821,70286.0,70277.0,0.0711465]
[1771129865943,0.07114061,70284.0,70275.0,0.07114809]
[1771129866142,0.07114061,70284.0,70272.0,0.02473275]
[1771129866143,0.07114061,70284.0,70276.0,0.07114712]
[1771129866579,0.0001301,70286.0,70274.0,0.07115006]
[1771129866747,0.0001301,70286.0,70275.0,0.02473275]
[1771129866971,0.0011301,70286.0,70281.0,0.0711428]
[1771129867183,0.0001301,70286.0,70277.0,0.07114703]
[1771129867385,0.07126844,70286.0,70279.0,0.07114417]
[1771129867636,0.0001301,70286.0,70280.0,0.07114382]
[1771129868137,0.0011301,70286.0,70280.0,0.07114382]
[1771129868291,0.0694163,70288.0,70280.0,0.07099621]
[1771129868509,0.00012,70300.0,70280.0,0.07099621]
[1771129868716,0.00012,70300.0,70289.0,0.07113413]
[1771129868880,0.00012,70300.0,70290.0,0.07113354]
[1771129868881,0.09501767,70298.0,70290.0,0.07113354]
[1771129869087,0.09501767,70298.0,70289.0,0.07113413]
[1771129869088,0.02389103,70298.0,70291.0,0.0711328]
[1771129869336,0.02389103,70298.0,70290.0,0.07113357]
[1771129869549,0.02389103,70298.0,70291.0,0.07113215]
[1771129869947,0.02389103,70298.0,70292.0,0.0711316]
[1771129870104,0.0004,70298.0,70292.0,0.0711316]
[1771129870291,0.0004,70298.0,70289.0,0.07113296]
[1771129870695,0.0004,70298.0,70292.0,0.07113176]
[1771129871135,0.0004,70298.0,70281.0,0.62548788]
[1771129871345,0.07112815,70296.0,70289.0,0.002]
[1771129871548,0.55032702,70295.0,70287.0,0.07113513]
[1771129871754,0.02349103,70294.0,70287.0,0.07113513]
[1771129871955,0.02349103,70294.0,70279.0,0.000321]
[1771129871956,0.52683599,70290.0,70279.0,0.000321]
[1771129872182,0.52683599,70286.0,70279.0,0.000321]
[1771129872394,0.02349103,70285.0,70279.0,0.000321]
[1771129872591,0.52683599,70285.0,70280.0,0.07114318]
[1771129872864,0.07115073,70274.0,70270.0,0.00012]
[1771129873106,0.07114607,70278.0,70270.0,0.0002501]
[1771129873322,0.07114703,70277.0,70270.0,0.07140404]
[1771129873999,0.07114814,70276.0,70270.0,0.0002501]
[1771129874167,0.07114703,70277.0,70270.0,0.0002501]
[1771129874567,0.02332726,70278.0,70271.0,0.07115297]
[1771129874879,0.02332726,70278.0,70270.0,0.0002501]
[1771129875082,0.09447357,70278.0,70271.0,0.07115262]
[1771129875816,0.02332726,70278.0,70272.0,0.07115131]
[1771129875967,0.003,70276.0,70274.0,0.07114997]
[1771129876166,0.003,70276.0,70270.0,0.07140348]
[1771129876409,0.07114782,70277.0,70270.0,0.0002501]
[1771129876613,0.07114782,70277.0,70270.0,0.07140402]
[1771129876815,0.071148,70278.0,70270.0,0.0002501]
[1771129877013,0.074148,70278.0,70270.0,0.0002501]
[1771129877208,0.071148,70278.0,70270.0,0.0002501]
[1771129877415,0.071148,70278.0,70271.0,0.07115305]
[1771129877562,0.002,70277.0,70272.0,0.07115207]
[1771129877923,0.07114525,70279.0,70272.0,0.07115207]
[1771129878294,0.07114414,70280.0,70273.0,0.07115093]
[1771129878682,0.07114525,70279.0,70272.0,0.07115202]
[1771129878886,0.57199688,70286.0,70271.0,0.07115305]
[1771129878887,0.00012,70300.0,70282.0,0.02486889]
[1771129879086,0.0005,70298.0,70289.0,0.02486889]
[1771129879312,0.00012,70300.0,70289.0,0.02486889]
[1771129879493,0.00012,70300.0,70294.0,0.07112963]
[1771129879923,0.00312,70300.0,70291.0,0.07113286]
[1771129880302,0.00012,70300.0,70291.0,0.07113286]
[1771129880489,0.00312,70300.0,70291.0,0.07113286]
[1771129880689,0.00355373,70300.0,70291.0,0.07113286]
[1771129880890,0.00055373,70300.0,70291.0,0.07113286]
[1771129881103,0.00355373,70300.0,70291.0,0.07113286]
[1771129881366,0.00355373,70300.0,70293.0,0.07113062]
[1771129881521,0.00355373,70300.0,70296.0,0.07112693]
[1771129882422,0.00055373,70300.0,70296.0,0.07112693]
[1771129882619,0.00055373,70300.0,70295.0,0.07112868]
[1771129882791,0.00255373,70300.0,70295.0,0.07112868]
[1771129883187,0.00255373,70300.0,70295.0,0.07098105]
[1771129883438,0.00055373,70300.0,70294.0,0.0711293]
[1771129883661,0.00095373,70300.0,70295.0,0.07112846]
[1771129883816,0.00395373,70300.0,70295.0,0.07112846]
[1771129884028,0.00395373,70300.0,70292.0,0.07113094]
[1771129884260,1e-08,70310.0,70291.0,0.02486889]
[1771129884455,9.251e-05,70310.0,70309.0,0.07111465]
[1771129884672,0.29741738,70349.0,70311.0,0.07111262]
[1771129884853,0.57220938,70330.0,70326.0,0.07109666]
[1771129885211,0.57220938,70330.0,70319.0,0.07110431]
[1771129885423,0.0710961,70328.0,70316.0,0.07110757]
[1771129885626,0.07109995,70324.0,70315.0,0.02486889]
[1771129885979,0.07110049,70323.0,70315.0,0.02486889]
[1771129886540,0.00181362,70329.0,70310.0,0.00012]
[1771129886671,0.07110215,70322.0,70310.0,0.00012]
[1771129887058,0.57399688,70324.0,70310.0,0.00012]
[1771129887309,0.64309695,70324.0,70312.0,0.07111161]
[1771129887506,0.07110057,70323.0,70313.0,0.07111046]
[1771129887792,0.0002125,70330.0,70315.0,0.07110768]
[1771129888001,0.0002125,70330.0,70310.0,0.00012]
[1771129888200,0.07130601,70330.0,70316.0,0.02486889]
[1771129888411,0.07109556,70328.0,70319.0,0.07110446]
[1771129888661,0.28622118,70334.0,70319.0,0.07110446]
[1771129888662,1e-08,70362.0,70341.0,0.55183957]
[1771129888824,0.00013004,70362.0,70361.0,0.07106209]
[1771129889321,0.00013004,70362.0,70359.0,0.07106324]
[1771129889526,0.64305897,70361.0,70351.0,0.07107219]
[1771129889756,0.0710631,70360.0,70350.0,0.00012]
[1771129890062,0.57199688,70359.0,70351.0,0.07107217]
[1771129890421,0.57199688,70359.0,70350.0,0.00012]
[1771129890752,0.64487765,70356.0,70340.0,0.00012]
[1771129890886,0.64487765,70356.0,70347.0,0.07107595]
[1771129891089,0.64487765,70356.0,70348.0,0.07107489]
[1771129891331,0.5738105,70356.0,70348.0,0.07107489]
[1771129891745,0.57199688,70356.0,70351.0,0.008]
[1771129891948,0.57199688,70356.0,70348.0,0.07107489]
[1771129892111,0.57299688,70356.0,70348.0,0.006]
[1771129892319,0.07106823,70355.0,70348.0,0.006]
[1771129892527,0.07107265,70351.0,70336.0,0.3408]
[1771129892725,0.34076,70356.0,70334.0,0.02486889]
[1771129892989,0.10270107,70356.0,70330.0,0.00012617]
[1771129893193,0.00013004,70362.0,70360.0,0.07106289]
[1771129893396,0.00013004,70362.0,70350.0,0.00012]
[1771129893397,0.00013004,70362.0,70355.0,0.07106758]
[1771129893533,0.00013004,70362.0,70353.0,0.07107017]
[1771129893738,0.07119126,70362.0,70353.0,0.07107017]
[1771129894160,0.00013004,70362.0,70354.0,0.07106913]
[1771129894361,0.07119113,70362.0,70352.0,0.07107018]
[1771129894758,0.07119113,70362.0,70353.0,0.0710699]
[1771129895293,0.07119115,70362.0,70352.0,0.02486889]
[1771129895445,0.00013004,70362.0,70352.0,0.004]
[1771129895643,0.07119115,70362.0,70353.0,0.0710692]
[1771129896126,0.07219115,70362.0,70353.0,0.0800692]
[1771129896745,5e-05,70368.0,70354.0,0.02486889]
[1771129896898,5e-05,70368.0,70355.0,0.02486889]
[1771129897099,0.07105728,70366.0,70355.0,0.09593664]
[1771129897500,0.07105728,70366.0,70358.0,0.0710651]
[1771129897672,0.07105594,70368.0,70358.0,0.0710651]
[1771129897873,0.0004,70362.0,70358.0,0.09593399]
[1771129898453,0.0014,70362.0,70358.0,0.02486889]
[1771129898655,0.0014,70362.0,70354.0,0.07119883]
[1771129898783,0.0004,70362.0,70355.0,0.07106806]
[1771129898979,0.0014,70362.0,70358.0,0.013]
[1771129899304,0.0004,70362.0,70355.0,0.07106806]
[1771129899675,0.0004,70362.0,70358.0,0.011]
[1771129899676,0.0014,70362.0,70358.0,0.011]
[1771129899929,0.0004,70362.0,70354.0,0.00013003]
[1771129900174,0.57199688,70358.0,70331.0,0.02486889]
[1771129900383,0.07107956,70344.0,70331.0,0.02486889]
[1771129900608,0.07107889,70345.0,70335.0,0.07108743]
[1771129900820,0.07107976,70344.0,70336.0,0.07108735]
[1771129901006,0.07108045,70343.0,70335.0,0.07108833]
[1771129901215,0.07107889,70345.0,70337.0,0.07108621]
[1771129901436,0.07108064,70343.0,70333.0,0.02409318]
[1771129901935,0.07108064,70343.0,70328.0,0.07109462]
[1771129901936,0.07108704,70337.0,70328.0,0.07109462]
[1771129902134,0.07108758,70336.0,70327.0,0.07109549]
[1771129902380,0.07108745,70336.0,70328.0,0.07109463]
[1771129902594,0.0710887,70335.0,70326.0,0.02424648]
[1771129902796,0.07108937,70334.0,70326.0,0.02424648]
[1771129903093,0.07109054,70333.0,70330.0,0.00912617]
[1771129903292,0.07109054,70333.0,70326.0,0.02424648]
[1771129903293,0.07109537,70329.0,70326.0,0.0001533]
[1771129903589,0.07109548,70328.0,70322.0,0.34064]
[1771129903750,0.07109679,70327.0,70322.0,0.3407325]
[1771129903949,0.55855273,70333.0,70322.0,9.25e-05]
[1771129904150,0.001,70337.0,70324.0,0.02409318]
[1771129904360,0.55855273,70332.0,70322.0,9.25e-05]
[1771129904753,0.07109787,70326.0,70322.0,9.25e-05]
[1771129905072,0.55855273,70329.0,70314.0,0.02409318]
[1771129905251,0.07110314,70321.0,70311.0,0.07111167]
[1771129905449,0.0711037,70320.0,70312.0,0.07111144]
[1771129905677,0.07110049,70323.0,70309.0,0.41175452]
[1771129905875,0.28439794,70324.0,70309.0,0.41175458]
[1771129905876,0.07110638,70318.0,70309.0,0.41175458]
[1771129906190,0.07110656,70317.0,70309.0,0.34064]
[1771129906397,0.07110835,70316.0,70309.0,0.34064]
[1771129906550,0.84295532,70323.0,70311.0,0.07111242]
[1771129906756,0.62965423,70323.0,70309.0,0.34064]
[1771129907070,0.07110529,70319.0,70311.0,0.07111239]
[1771129907313,0.07110529,70319.0,70312.0,0.07111147]
[1771129907506,0.00181362,70325.0,70310.0,0.07111285]
[1771129907507,0.55855273,70338.0,70326.0,0.0002]
[1771129907733,0.07109631,70328.0,70326.0,0.0002]
[1771129908025,0.005,70323.0,70318.0,0.02429318]
[1771129908367,0.55855273,70328.0,70318.0,0.0002]
[1771129908786,0.07110283,70321.0,70318.0,0.0002]
[1771129909031,0.07110163,70322.0,70318.0,0.0002]
[1771129909203,0.07110367,70320.0,70318.0,0.0002]
[1771129909399,0.07110278,70321.0,70318.0,0.0022]
[1771129909602,0.07110394,70320.0,70318.0,0.0022]
[1771129910225,0.55855273,70322.0,70309.0,0.34064]
[1771129910413,0.0711075,70317.0,70309.0,0.41175455]
[1771129910617,0.07110682,70317.0,70309.0,0.34064]
[1771129910818,0.07110682,70317.0,70309.0,0.41175464]
[1771129911042,0.003,70321.0,70309.0,0.34064]
[1771129911274,0.07110938,70315.0,70309.0,0.34064]
[1771129911457,0.07110337,70321.0,70311.0,0.07111178]
[1771129911629,0.07110359,70320.0,70313.0,0.02409318]
[1771129911808,0.07110337,70321.0,70313.0,0.07110981]
[1771129912004,0.006,70317.0,70313.0,0.09391022]
[1771129912203,5e-05,70319.0,70313.0,0.09391022]
[1771129912803,5e-05,70319.0,70313.0,0.02280041]
[1771129913102,5e-05,70319.0,70313.0,0.09391095]
[1771129913303,5e-05,70319.0,70313.0,0.02256041]
[1771129913548,0.07110476,70319.0,70313.0,0.02256041]
[1771129913777,0.0712237,70320.0,70313.0,0.02256041]
[1771129913985,0.00012,70320.0,70313.0,0.09367091]
[1771129914259,0.004,70317.0,70313.0,0.09567091]
[1771129914609,0.004,70317.0,70313.0,0.09767091]
[1771129915036,0.00012,70320.0,70313.0,0.09367091]
[1771129915256,0.00012,70320.0,70313.0,0.02256041]
[1771129915640,0.07122374,70320.0,70313.0,0.09367085]
[1771129916726,0.00012,70320.0,70313.0,0.09387085]
[1771129917405,0.006,70317.0,70313.0,0.09587085]
[1771129918001,0.07122373,70320.0,70313.0,0.09387085]
[1771129918296,0.07922373,70320.0,70313.0,0.09587085]
[1771129918522,0.0710984,70326.0,70318.0,0.07110504]
[1771129918723,0.07109879,70325.0,70318.0,0.07110504]
[1771129918859,0.07109879,70325.0,70317.0,0.07110627]
[1771129919615,0.55855273,70333.0,70313.0,0.2846388]
[1771129919616,0.55855273,70336.0,70314.0,0.53055707]
[1771129919818,0.07108986,70334.0,70326.0,0.07109661]
[1771129920120,0.07109071,70333.0,70325.0,0.07109775]
[1771129920619,0.007,70326.0,70325.0,0.07109847]
[1771129920817,0.07109056,70333.0,70325.0,0.09389888]
[1771129921027,0.07109056,70333.0,70326.0,0.071097]
[1771129921241,0.07609056,70333.0,70325.0,0.02380041]
[1771129921460,0.07109056,70333.0,70325.0,0.02280041]
[1771129921982,0.002,70326.0,70325.0,0.09489888]
[1771129922187,0.07109056,70333.0,70325.0,0.09389888]
[1771129922363,0.58133848,70348.0,70334.0,0.07108896]
[1771129922591,0.07109244,70331.0,70325.0,0.001]
[1771129922776,0.0710917,70332.0,70325.0,0.001]
[1771129922905,0.07122165,70332.0,70325.0,0.07209782]
[1771129923110,0.00012995,70332.0,70325.0,0.07209782]
[1771129923554,0.00012995,70332.0,70322.0,0.02280041]
[1771129923768,0.34172,70345.0,70334.0,0.004]
[1771129923930,0.001,70345.0,70334.0,0.004]
[1771129924135,0.02278575,70359.0,70336.0,0.53055707]
[1771129924333,0.07107476,70349.0,70342.0,0.02280041]
[1771129924761,0.07107353,70350.0,70342.0,0.09388165]
[1771129925190,0.001,70345.0,70342.0,0.09388165]
[1771129925395,0.001,70345.0,70342.0,0.07108124]
[1771129925593,0.001,70345.0,70336.0,0.00012995]
[1771129925791,0.001,70345.0,70342.0,0.07108097]
[1771129926129,0.001,70345.0,70343.0,0.07108005]
[1771129926344,0.001,70345.0,70342.0,0.07108097]
[1771129926547,0.0014,70345.0,70341.0,0.07108212]
[1771129926695,0.0004,70345.0,70342.0,0.02280041]
[1771129926895,0.0004,70345.0,70343.0,0.09388002]
[1771129927108,0.0004,70345.0,70343.0,0.02280041]
[1771129927511,0.0014,70345.0,70343.0,0.02280041]
[1771129927852,0.0004,70345.0,70343.0,0.02280041]
[1771129928209,0.0014,70345.0,70343.0,0.02980041]
[1771129928444,0.0004,70345.0,70343.0,0.02280041]
[1771129929841,0.0014,70345.0,70343.0,0.03080041]
[1771129930044,0.0014,70345.0,70340.0,0.00012]
[1771129930223,0.55855273,70344.0,70333.0,0.24592]
[1771129930411,0.55855273,70344.0,70330.0,0.07121271]
[1771129930412,0.58133848,70341.0,70330.0,0.00012]
[1771129930613,0.0710833,70340.0,70332.0,0.07109073]
[1771129930838,0.07108545,70338.0,70331.0,0.07109171]
[1771129931040,0.07108463,70339.0,70331.0,0.07109171]
[1771129931290,0.07108463,70339.0,70332.0,0.07109084]
[1771129931417,0.0710854,70338.0,70331.0,0.07109214]
[1771129931622,0.0710854,70338.0,70332.0,0.005]
[1771129932459,0.07208337,70340.0,70333.0,0.07109038]
[1771129932710,0.001,70340.0,70333.0,0.02280041]
[1771129933032,0.00012998,70341.0,70330.0,0.00012]
[1771129933033,0.00012998,70341.0,70337.0,0.02415445]
[1771129933232,0.001,70339.0,70337.0,0.02415445]
[1771129933707,0.00012998,70341.0,70337.0,0.02415445]
[1771129933892,0.001,70340.0,70337.0,0.02415445]
[1771129934260,0.00012998,70341.0,70337.0,0.02415445]
[1771129934461,0.001,70339.0,70337.0,0.02915445]
[1771129934667,0.001,70339.0,70337.0,0.005]
[1771129934916,0.07108339,70340.0,70333.0,0.07109018]
[1771129935678,0.07108451,70339.0,70332.0,0.07109136]
[1771129936194,0.07108533,70338.0,70337.0,0.001]
[1771129936392,0.07108432,70339.0,70332.0,0.0710907]
[1771129936777,0.07108557,70338.0,70332.0,0.002]
[1771129937333,0.07108468,70339.0,70332.0,0.07109132]
[1771129937750,0.00052998,70341.0,70330.0,0.02427445]
[1771129937875,0.02339832,70337.0,70323.0,0.41174049]
[1771129938072,0.07109228,70332.0,70324.0,0.07109867]
[1771129938277,0.07108432,70339.0,70323.0,0.34064]
[1771129938512,0.28439289,70338.0,70326.0,0.07109736]
[1771129938894,0.00205,70338.0,70324.0,0.07109948]
[1771129939098,0.07109187,70332.0,70323.0,0.43589302]
[1771129939292,0.00205,70338.0,70325.0,0.07109751]
[1771129939518,0.07108911,70335.0,70327.0,0.07109635]
[1771129939724,0.07109082,70333.0,70325.0,0.07109751]
[1771129939923,0.07109012,70334.0,70327.0,0.07109614]
[1771129940174,0.07108774,70336.0,70326.0,0.02415445]
[1771129940391,0.07109031,70334.0,70327.0,0.07109615]
[1771129941343,5e-05,70338.0,70330.0,0.07109275]
[1771129941555,5e-05,70338.0,70329.0,0.09524851]
[1771129941878,0.07109172,70332.0,70323.0,0.34064]
[1771129942175,0.34064,70347.0,70323.0,0.34064]
[1771129942176,0.00012,70350.0,70337.0,0.02415445]
[1771129942417,0.07108085,70343.0,70335.0,0.07108801]
[1771129942584,0.07108198,70342.0,70335.0,0.07108801]
[1771129942794,0.07108085,70343.0,70335.0,0.07108801]
[1771129943103,0.07107738,70346.0,70339.0,0.071084]
[1771129943308,0.07107738,70346.0,70339.0,0.07121398]
[1771129943442,0.07108071,70343.0,70339.0,0.00012998]
[1771129943998,0.07108071,70343.0,70333.0,0.09524445]
[1771129943999,0.07108209,70342.0,70334.0,0.07108855]
[1771129944153,0.07121204,70342.0,70334.0,0.07108855]
[1771129944353,0.07121204,70342.0,70339.0,0.002]
[1771129944699,0.07121204,70342.0,70335.0,0.07108829]
[1771129944851,0.07108237,70341.0,70334.0,0.07108915]
[1771129945053,0.0710842,70340.0,70330.0,0.00032]
[1771129945254,0.07108529,70339.0,70332.0,0.07109122]
[1771129945484,0.0004,70341.0,70327.0,0.02415445]
[1771129945679,0.071088,70336.0,70328.0,0.07109475]
[1771129945900,0.07108856,70335.0,70328.0,0.07109475]
[1771129947073,0.07108856,70335.0,70330.0,0.001]
[1771129947308,0.02339832,70339.0,70330.0,0.001]
[1771129947587,0.07108668,70337.0,70326.0,0.28438787]
[1771129947751,0.003,70335.0,70329.0,0.07109342]
[1771129948267,0.07108668,70337.0,70329.0,0.07109342]
[1771129948413,0.002,70335.0,70330.0,0.001]
[1771129948618,0.07108668,70337.0,70329.0,0.07109342]
[1771129949163,0.07113728,70338.0,70329.0,0.07109342]
[1771129949918,0.002,70335.0,70329.0,0.07309342]
[1771129950202,0.07108634,70337.0,70329.0,0.07109342]
[1771129950550,0.07108634,70337.0,70329.0,0.07409342]
[1771129950753,0.07108634,70337.0,70329.0,0.07109342]
[1771129951135,0.001,70335.0,70329.0,0.07409342]
[1771129951332,0.07108634,70337.0,70329.0,0.07109342]
[1771129951731,0.07208634,70337.0,70329.0,0.07409342]
[1771129952830,0.07108634,70337.0,70329.0,0.07109342]
[1771129953335,0.002,70335.0,70329.0,0.07509342]
[1771129953552,0.07108634,70337.0,70329.0,0.07109342]
[1771129953688,0.07308634,70337.0,70329.0,0.07609342]
[1771129954080,0.07108634,70337.0,70330.0,0.07109337]
[1771129954584,0.07108741,70336.0,70329.0,0.07429405]
[1771129954783,0.07108741,70336.0,70329.0,0.0002]
[1771129954784,0.07108738,70336.0,70329.0,0.0002]
[1771129955026,0.07108934,70335.0,70329.0,0.0002]
[1771129956001,0.07108934,70335.0,70329.0,0.0072]
[1771129956399,0.0710894,70334.0,70329.0,0.0002]
[1771129956602,0.0710894,70334.0,70329.0,0.0082]
[1771129957042,0.55253089,70335.0,70324.0,0.34064]
[1771129957258,0.09449203,70330.0,70329.0,0.009]
[1771129957419,0.64702292,70330.0,70324.0,0.34064]
[1771129957784,0.07109442,70329.0,70321.0,0.07130177]
[1771129957938,0.64702363,70329.0,70321.0,0.07130177]
[1771129958140,0.07109564,70328.0,70321.0,8e-05]
[1771129958638,0.09449313,70329.0,70322.0,0.07110149]
[1771129959012,0.07109546,70328.0,70322.0,0.07110149]
[1771129959524,5e-05,70329.0,70311.0,0.0002569]
[1771129959724,0.02339832,70321.0,70311.0,0.0002569]
[1771129960127,0.0711035,70321.0,70313.0,0.07131054]
[1771129960533,0.0711035,70321.0,70313.0,0.07831054]
[1771129960713,0.0711035,70321.0,70313.0,0.07131054]
[1771129961351,0.0711035,70321.0,70314.0,0.07110953]
[1771129961746,0.0711015,70322.0,70313.0,0.07131058]
[1771129961747,0.07110376,70320.0,70313.0,0.07131058]
[1771129961948,0.07110376,70320.0,70313.0,0.0002]
[1771129962155,0.07110376,70320.0,70313.0,0.0062]
[1771129962376,0.07110376,70320.0,70313.0,0.07731035]
[1771129962555,0.07110468,70319.0,70313.0,0.0002]
[1771129962800,0.07510417,70320.0,70313.0,0.07931005]
[1771129963593,0.34068,70334.0,70313.0,0.0002]
[1771129963763,0.07110134,70323.0,70315.0,0.07110783]
[1771129963976,0.004,70320.0,70316.0,0.02284025]
[1771129964600,0.004,70320.0,70313.0,0.0092]
[1771129964800,0.07510392,70320.0,70313.0,0.0803105]
[1771129965303,0.07510359,70320.0,70313.0,0.0092]
[1771129965705,0.07110457,70319.0,70313.0,0.0002]
[1771129965917,0.07110185,70322.0,70313.0,0.0002]
[1771129966076,0.003,70320.0,70313.0,0.0052]
[1771129966279,0.003,70320.0,70314.0,0.07110946]
[1771129966541,0.006,70320.0,70314.0,0.07110946]
[1771129966747,0.07710354,70320.0,70314.0,0.07110946]
[1771129966904,0.07110354,70320.0,70313.0,0.07131021]
[1771129967332,0.56251878,70327.0,70313.0,0.0002]
[1771129967543,0.07110834,70316.0,70313.0,0.0002]
[1771129967683,0.07110834,70317.0,70313.0,0.0002]
[1771129967882,0.07110757,70316.0,70313.0,0.0002]
[1771129968595,0.07110833,70316.0,70313.0,0.0002]
[1771129969220,0.07110833,70316.0,70314.0,0.004]
[1771129969582,0.07110833,70316.0,70313.0,0.0002]
[1771129969781,0.07810833,70316.0,70313.0,0.0042]
[1771129970028,0.007,70316.0,70313.0,0.0042]
[1771129970233,0.07110571,70318.0,70313.0,0.0002]
[1771129970431,0.07110251,70321.0,70313.0,0.0002]
[1771129970631,0.007,70316.0,70314.0,0.004]
[1771129970794,0.07110435,70320.0,70313.0,0.0002]
[1771129970992,0.07110881,70315.0,70313.0,0.0002]
[1771129971214,0.07110881,70315.0,70313.0,0.0042]
[1771129972038,0.07110913,70315.0,70313.0,0.0042]
[1771129972278,0.007,70316.0,70310.0,0.00023383]
[1771129972427,0.07111022,70315.0,70310.0,0.00023383]
[1771129972950,0.07111022,70315.0,70314.0,0.004]
[1771129973255,0.07111022,70315.0,70310.0,0.00023383]
[1771129973463,0.07710793,70316.0,70310.0,0.00423383]
[1771129973622,0.07110793,70316.0,70310.0,0.00023383]
[1771129973966,0.0751088,70315.0,70310.0,0.00423383]
[1771129974192,0.0711088,70315.0,70310.0,0.00023383]
[1771129974599,0.07111008,70314.0,70310.0,0.00023383]
[1771129974800,0.0711088,70315.0,70310.0,0.00023383]